[Event "Slovakian-ch Youth 2022"]
[Site "Lubovna"]
[Date "2022.05.22"]
[Round "1.17"]
[White "Filo, David"]
[Black "Skreko, Igor"]
[Result "0-1"]
[ECO "E94"]
[WhiteElo "1653"]
[BlackElo "2065"]
[Annotator "TA"]
[PlyCount "34"]
[EventDate "2022.05.22"]
[EventCountry "SVK"]
[SourceTitle "playchess.com"]
[Source "ChessBase"]
[SourceQuality "1"]
[TimeControl "40/5400+30:1800+30"]

{[%evp 18,34,0,0,2,-44,-28,-160,-157,-161,-152,-236,-243,-405,-399,-380,-390,-29995,-29996]} 1. d4 {[%emt 0:00:13]} Nf6 {[%emt 0:00:03]} 2. c4 {[%emt 0:00:22]} g6 {[%emt 0:00:06]} 3. Nc3 {[%emt 0:00:19]} Bg7 {[%emt 0:00:07]} 4. e4 {[%emt 0:00:50]} d6 {[%emt 0:00:05]} 5. Nf3 {[%emt 0:00:18]} O-O {[%emt 0:00:07]} 6. Be2 {[%emt 0:00:34]} e5 {[%emt 0:00:06]} 7. d5 {[%emt 0:00:13]} a5 {[%emt 0:00:06]} 8. O-O {[%emt 0:00:55]} Na6 {[%emt 0:00:41][%cal Bb8a6,Ba6c5,Bc5d3][%mdl 32]} 9. h3 {[%emt 0:00:49]} Nc5 {[%emt 0:01:26]} 10. Qc2 {[%emt 0:01:13]} Nh5 {[%emt 0:02:39] E94: King's Indian: Classical: 6 Be2 e5 7 0-0: Various Black 7th moves.} 11. Ne1 {[%emt 0:05:32]} (11. Bg5 $11 f6 12. Be3) 11... Nf4 $15 {[%emt 0:01:33]} 12. Nd3 {[%emt 0:01:03]} (12. Nf3 $11 {keeps the balance.}) 12... Ncxd3 $17 {[%emt 0:03:58] Black is more active. Black is clearly better.} ({Weaker is} 12... Nfxd3 13. Bxd3 f5 14. exf5 $15) 13. Bxd3 {[%emt 0:00:11] [#]} Qg5 $1 {[%emt 0:01:14][%csl Gf4,LRg2,LRh3][%cal Rg5g2]} 14. Bxf4 {[%emt 0:01:36]} (14. f3 $17 {might work better.}) 14... exf4 $40 {[%emt 0:00:15][%cal Be5f4,Bf4f3][%mdl 160] [#] Black goes for the king.} 15. Kh1 $146 {[%emt 0:03:28]} (15. f3 Bxh3 16. Kh1) ({Predecessor:} 15. Kh2 Be5 16. Rab1 f3+ 17. g3 Qh4 18. a3 Qxh3+ 19. Kg1 Qg2# {0-1 (19) Deller,H-Eggmann,K Chexbres 2005}) 15... f3 $1 {[%emt 0:05:23][%csl Gf3][%cal Rg5g2]} 16. Rg1 {[%emt 0:06:37]} Qh4 {[%emt 0:03:17][%cal Oc8h3] ( -> ...Bxh3!)} 17. Rge1 $2 {[%emt 0:08:25] [#]} (17. Bf1 $19 fxg2+ 18. Rxg2) 17... Bxh3 $1 {[%emt 0:02:05][%mdl 512] White got outplayed after the opening.  Weighted Error Value: White=1.58/Black=0.00 (flawless)} 0-1

[Event "Slovakian-ch Youth 2022"]
[Site "Lubovna"]
[Date "2022.05.22"]
[Round "1.18"]
[White "Sandor, Samuel"]
[Black "Sustek, Adam"]
[Result "1-0"]
[ECO "C11"]
[WhiteElo "2054"]
[BlackElo "1636"]
[Annotator "TA"]
[PlyCount "78"]
[EventDate "2022.05.22"]
[EventCountry "SVK"]
[SourceTitle "playchess.com"]
[Source "ChessBase"]
[SourceQuality "1"]
[TimeControl "40/5400+30:1800+30"]

{[%evp 14,78,10,10,30,29,29,30,45,39,96,99,64,52,67,50,79,77,69,65,99,85,95,89,102,68,134,41,36,22,58,13,167,51,215,217,247,243,474,22,24,21,93,107,116,101,81,7,212,196,6411,141,159,66,503,511,493,471,524,517,495,491,538,334,593,571,730]} 1. e4 {[%emt 0:00:05]} e6 {[%emt 0:00:10]} 2. d4 {[%emt 0:00:05]} d5 {[%emt 0:00:07]} 3. Nc3 {[%emt 0:00:08]} Nf6 {[%emt 0:00:26]} 4. e5 {[%emt 0:00:04]} Nfd7 {[%emt 0:00:06]} 5. f4 {[%emt 0:00:05]} c5 {[%emt 0:00:31]} 6. Nf3 {[%emt 0:00:10]} Be7 {[%emt 0:00:54]} 7. Be3 {[%emt 0:00:51]} Nc6 {[%emt 0:03:26]} 8. Qd2 {[%emt 0:00:29]} cxd4 {[%emt 0:07:53] C11: French: Classical System: 4 e5 and 4 Bg5 dxe4.} 9. Nxd4 {[%emt 0:00:22]} Nxd4 {[%emt 0:00:48]} 10. Bxd4 {[%emt 0:00:32]} Bc5 {[%emt 0:03:52] White has an edge.} 11. O-O-O {[%emt 0:06:47][%cal Oc3e4]} a6 {[%emt 0:04:45] [#]} (11... O-O $14) 12. Ne4 $146 {[%emt 0:07:14]} ({Predecessor:} 12. Bxc5 Nxc5 13. Qf2 Qc7 14. Qf3 O-O 15. Bd3 b5 16. a3 Qb6 17. Qh3 Nxd3+ 18. Qxd3 {1-0 (76) Pauscher,W (1806)-Caprita,V (1429) Leipzig 2013}) 12... Be7 {[%emt 0:10:49]} (12... Ba3 13. Qe3) 13. Ng5 {[%emt 0:14:38] White is much more active. The black rooks are badly placed.} b5 {[%emt 0:13:22]} 14. h4 {[%emt 0:09:01]} h6 {[%emt 0:05:46]} 15. Nf3 {[%emt 0:01:18]} Nc5 {[%emt 0:02:21]} 16. g4 {[%emt 0:06:05]} Ne4 {[%emt 0:08:29]} 17. Qe1 {[%emt 0:01:12]} Bd7 {[%emt 0:04:56]} 18. Kb1 {[%emt 0:02:40]} a5 {[%emt 0:05:28]} 19. Bd3 {[%emt 0:05:16]} Nc5 {[%emt 0:01:10]} ({Black should try} 19... a4 $1 $14) 20. Bxc5 {[%emt 0:09:07]} (20. f5 $16) 20... Bxc5 $14 {[%emt 0:00:15]} 21. f5 {[%emt 0:00:26]} b4 {[%emt 0:07:48]} 22. Qg3 {[%emt 0:03:44]} Rb8 $2 {[%emt 0:09:47]} (22... Qb6 $11) 23. Rde1 {[%emt 0:09:27]} (23. g5 $1 $18) 23... Bb5 $2 {[%emt 0:06:01]} (23... Qb6 $14) 24. g5 $18 {[%emt 0:03:42] Strongly threatening gxh6.} Bxd3 {[%emt 0:01:06]} 25. cxd3 {[%emt 0:00:02]} exf5 $2 {[%emt 0:01:38]} (25... Qe7 {keeps fighting.} 26. f6 Qf8) 26. g6 $2 {[%emt 0:04:11]} (26. e6 $18) 26... O-O $11 {[%emt 0:00:45]} 27. d4 {[%emt 0:07:37]} Ba7 {[%emt 0:00:01]} (27... Be7 $1 $11) 28. gxf7+ $16 {[%emt 0:03:17]} Rxf7 {[%emt 0:00:16]} 29. e6 $1 $36 {[%emt 0:00:31][%mdl 2048] White is really pushing.} Re7 {[%emt 0:00:47]} 30. Qe5 {[%emt 0:02:00]} ({Better is} 30. Qg6 $16 {[%cal Of3g5] Threatening mate with Ng5!} Qe8 31. Qxf5) 30... Qc7 $2 {[%emt 0:01:12]} (30... b3 $11 31. a3 (31. Qxf5 bxa2+ 32. Ka1 Qb6 $11) 31... f4) 31. Qxf5 $18 {[%emt 0:00:43][%cal Of3g5] Ng5! is the strong threat.} ({Not} 31. Qxd5 b3 $14) 31... Rbe8 $2 {[%emt 0:00:32] [#]} (31... b3) 32. Qxd5 $2 {[%emt 0:00:54]} (32. Ng5 $1 $18 {[%mdl 512] is the precise move to win. Intending Qh7+ and mate.} hxg5 33. hxg5 Rxe6 34. Rxe6 Rxe6 35. Qxe6+ Qf7 36. Rh8+ $3 {[%mdl 512]} Kxh8 37. Qxf7) 32... Qb6 {[%emt 0:00:31][%cal Re7e6] [#]} (32... Rc8 $2 33. Rc1 Qd8 34. Rxc8 Qxc8 35. Ne5 Qxe6 36. Nc6 $1 $18 (36. Qxa5 Bxd4 37. Qd8+ Kh7 $11)) 33. Re4 {[%emt 0:01:19]} (33. Re3 $1 $16) 33... Qb7 $2 {[%emt 0:00:30][%mdl 8192] [#]} (33... Qa6 $14 34. Ka1 a4) 34. Qxb7 $1 {[%emt 0:00:25]} Rxb7 {[%emt 0:00:01]} 35. d5 {[%emt 0:00:49]} Bc5 {[%emt 0:00:57]} 36. Rc1 {[%emt 0:01:02]} Be7 {[%emt 0:00:26]} 37. Ne5 {[%emt 0:00:57]} Rd8 {[%emt 0:00:32]} 38. Nd7 {[%emt 0:00:24]} Rb5 $2 {[%emt 0:00:31]} (38... h5 39. Rc6 Rdxd7) 39. Rd1 {[%emt 0:00:27]} Rb7 {[%emt 0:00:33] Weighted Error Value: White=0.59/Black=0.82} 1-0

[Event "Slovakian-ch Youth 2022"]
[Site "Lubovna"]
[Date "2022.05.22"]
[Round "1.19"]
[White "Tokarcik, Patrik"]
[Black "Lovcican, Tomas"]
[Result "0-1"]
[ECO "B72"]
[WhiteElo "1591"]
[BlackElo "2024"]
[Annotator "TA"]
[PlyCount "62"]
[EventDate "2022.05.22"]
[EventCountry "SVK"]
[SourceTitle "playchess.com"]
[Source "ChessBase"]
[SourceQuality "1"]
[TimeControl "40/5400+30:1800+30"]

{[%evp 18,62,20,1,8,0,-4,-13,-4,-14,-22,-93,-79,-72,-79,-77,-79,-79,-62,-71,-70,-70,-61,-63,-15,-23,-22,-14,-27,-75,-29,-47,-43,-56,-60,-54,-48,-54,-54,-101,-101,-120,-107,-107,-96,-102,425]} 1. e4 {[%emt 0:00:07]} c5 {[%emt 0:00:10]} 2. Nf3 {[%emt 0:00:22]} Nc6 {[%emt 0:00:10]} 3. d4 {[%emt 0:00:25]} cxd4 {[%emt 0:00:05]} 4. Nxd4 {[%emt 0:00:08]} Nf6 {[%emt 0:01:06]} 5. Nc3 {[%emt 0:00:21]} d6 {[%emt 0:00:34]} 6. Be2 {[%emt 0:02:58]} g6 {[%emt 0:01:02]} 7. Be3 {[%emt 0:01:19]} Bg7 {[%emt 0:00:08]} 8. Qd2 {[%emt 0:02:44]} Ng4 {[%emt 0:04:19]} 9. Bxg4 {[%emt 0:03:45]} Bxg4 {[%emt 0:00:06]} 10. f3 {[%emt 0:01:18] [#] Threatens to win with Nxc6.} Bd7 {[%emt 0:01:10] B72: Sicilian Dragon: 6 Be3, lines with h3+Bc4 and sidelines.} 11. Nxc6 {[%emt 0:03:46]} bxc6 {[%emt 0:00:52]} 12. Bh6 {[%emt 0:06:08]} Bf6 {[%emt 0:13:23] [#] The position is equal.} 13. Rd1 $146 {[%emt 0:12:59]} ({Predecessor:} 13. Rb1 Qa5 14. O-O Qe5 15. Ne2 Bg7 16. Bxg7 Qxg7 17. Qd4 O-O 18. Rfd1 Qxd4+ 19. Rxd4 {0-1 (60) Podgorski,M (1835)-Malec,S (2132) Warsaw 2018}) 13... Qa5 {[%emt 0:09:48]} 14. f4 {[%emt 0:15:10]} (14. Rb1 $11 {remains equal.}) 14... Qh5 {[%emt 0:07:18]} 15. Bg5 {[%emt 0:07:12] And now Bxf6 would win.} Bxg5 {[%emt 0:05:09]} (15... Bxc3 {looks sharper.} 16. Qxc3 f6 17. Bxf6 exf6 18. Rxd6 O-O-O) 16. fxg5 {[%emt 0:00:11][%cal Oe4e5]} h6 {[%emt 0:12:43]} 17. gxh6 {[%emt 0:10:35]} Rxh6 {[%emt 0:00:11]} 18. Qf4 {[%emt 0:02:35]} Rb8 {[%emt 0:10:14]} 19. b3 {[%emt 0:06:59]} Rh7 {[%emt 0:04:34]} 20. Rd3 {[%emt 0:05:17]} g5 {[%emt 0:06:44]} (20... f6 $15) 21. Qf2 {[%emt 0:02:14]} Rb7 {[%emt 0:01:36]} 22. h3 {[%emt 0:02:14]} Qh4 {[%emt 0:06:43]} 23. Rf1 {[%emt 0:02:48] [#]} (23. Rg3 $11) 23... g4 {[%emt 0:02:09]} (23... Qxf2+ $1 $17 24. Kxf2 f6) 24. Qxh4 {[%emt 0:03:00]} Rxh4 {[%emt 0:00:13]} 25. Rg3 {[%emt 0:00:08]} e5 {[%emt 0:05:00][%cal Rg4h3]} 26. hxg4 $1 {[%emt 0:02:14]} Bxg4 {[%emt 0:01:37]} 27. Rd3 {[%emt 0:00:37]} Ke7 {[%emt 0:00:47]} 28. Rd2 {[%emt 0:02:54]} (28. Nb1 $15) 28... Rb8 $17 {[%emt 0:03:42] Black is better.} 29. Rff2 {[%emt 0:00:25]} Rh1+ {[%emt 0:01:43]} 30. Rf1 {[%emt 0:00:30]} Rxf1+ {[%emt 0:00:30]} 31. Kxf1 {[%emt 0:00:30]} Bh3 $2 {[%emt 0:00:47][%mdl 40960] Weighted Error Value: White=0.17 (very precise) /Black=0.07 (flawless) . Loss on time!?} 0-1

[Event "Slovakian-ch Youth 2022"]
[Site "Lubovna"]
[Date "2022.05.22"]
[Round "1.20"]
[White "Paluska, Karol"]
[Black "Horvath, Marek"]
[Result "1/2-1/2"]
[ECO "D14"]
[WhiteElo "2006"]
[BlackElo "1801"]
[Annotator "TA"]
[PlyCount "105"]
[EventDate "2022.05.22"]
[EventCountry "SVK"]
[SourceTitle "playchess.com"]
[Source "ChessBase"]
[SourceQuality "1"]
[TimeControl "40/5400+30:1800+30"]

{[%evp 17,105,59,53,20,207,25,22,-33,-13,-28,0,-127,17,2,16,-11,-16,-6,53,31,30,16,41,12,2,0,22,6,18,5,31,24,28,32,29,0,35,-12,0,0,0,-27,0,-32,-33,-21,0,0,8,8,8,8,8,8,72,68,68,64,75,-152,-150,-150,-150,-150,0,-433,-416,-1512,-1515,-1864,-1698,-1371,-1750,-1478,-554,-1310,-822,-652,-425,-440,-297,-251,-24,-24,-24,-31,0,0,0,0]} 1. Nf3 {[%emt 0:00:05]} d5 {[%emt 0:00:16]} 2. d4 {[%emt 0:00:06]} Nf6 {[%emt 0:00:14]} 3. c4 {[%emt 0:00:17]} c6 {[%emt 0:00:11]} 4. cxd5 {[%emt 0:00:27]} cxd5 {[%emt 0:00:08]} 5. Nc3 {[%emt 0:00:04]} Nc6 {[%emt 0:00:14]} 6. Bf4 {[%emt 0:00:58]} Bf5 {[%emt 0:00:44]} 7. e3 {[%emt 0:00:08]} e6 {[%emt 0:00:10]} 8. Bb5 {[%emt 0:01:12]} a6 {[%emt 0:03:13]} 9. Bxc6+ {[%emt 0:05:24]} bxc6 {[%emt 0:00:09]} 10. Ne5 {[%emt 0:10:36] D14: Slav Defence: Exchange variation with ...Bf5.} c5 $2 {[%emt 0:01:22] [#]} (10... Nd7 $11) 11. Bg5 $146 {[%emt 0:03:40]} (11. Qa4+ $18 Nd7 12. dxc5) ({Predecessor:} 11. Qa4+ Nd7 12. g4 Bg6 13. h4 f6 14. Nxg6 hxg6 15. Qc6 Kf7 16. Bc7 Rc8 17. Nxd5 Nb8 18. Qxe6+ Kxe6 {½-½ (46) Coghini,P (1872)-Meravanage,S (1395) Wellington 2016}) 11... Qa5 $11 {[%emt 0:14:53]} 12. Nc6 {[%emt 0:23:56]} (12. O-O $11) 12... Qc7 $15 {[%emt 0:00:13]} 13. Qa4 {[%emt 0:00:36]} Qd7 {[%emt 0:05:42]} (13... Nd7 $5 {[%cal Rd7b6]} 14. Bf4 Qb7 $15) 14. dxc5 {[%emt 0:03:59]} (14. Bxf6 $11 {remains equal.} gxf6 15. dxc5) 14... Bxc5 {[%emt 0:03:09]} (14... Ne4 $1 $17 {[%cal Re4c5]} 15. Nd4 (15. Nxe4 Bxe4 16. f3 Bg6 $17) 15... Qxa4 16. Nxa4 Nxg5) 15. O-O {[%emt 0:04:20]} (15. Rc1 $5 {[%cal Re1g1]}) 15... O-O {[%emt 0:07:04]} 16. Ne5 {[%emt 0:06:10]} Qxa4 {[%emt 0:01:50]} 17. Nxa4 {[%emt 0:00:05]} Be7 {[%emt 0:09:10]} ({Black should try} 17... Bd6 $11 18. Bxf6 gxf6) 18. Nc6 {[%emt 0:10:35] Pair of Knights!} Bd8 {[%emt 0:06:28]} 19. Bxf6 {[%emt 0:05:20]} gxf6 {[%emt 0:00:17]} 20. Nxd8 {[%emt 0:00:45]} Rfxd8 {[%emt 0:00:24]} 21. Nc5 {[%emt 0:00:20]} Rdc8 {[%emt 0:11:00]} 22. Rac1 {[%emt 0:00:10]} a5 {[%emt 0:02:23]} 23. Rfd1 {[%emt 0:02:28]} Rab8 {[%emt 0:01:08]} 24. b3 {[%emt 0:01:52]} Rb5 {[%emt 0:02:42]} 25. Na4 {[%emt 0:01:05]} Rbb8 {[%emt 0:00:22]} 26. h3 {[%emt 0:01:21]} h5 {[%emt 0:02:25]} 27. Kf1 {[%emt 0:02:56]} (27. Rc5 $14 {deserves consideration.}) 27... Kf8 {[%emt 0:03:51]} 28. Ke2 {[%emt 0:00:04]} Ke7 {[%emt 0:00:37]} 29. Kd2 {[%emt 0:04:55]} Kd6 {[%emt 0:01:34]} 30. Rc3 {[%emt 0:00:21]} Rxc3 {[%emt 0:05:18]} (30... h4 {feels hotter.} 31. Rdc1 Rxc3 32. Nxc3 e5) 31. Nxc3 {[%emt 0:00:09][%mdl 4096] Endgame KRB-KRN} Rc8 {[%emt 0:00:07]} (31... Rg8 $5 {[%cal Rg8g2]}) 32. h4 {[%emt 0:04:38]} Kc5 {[%emt 0:07:43]} 33. Rc1 {[%emt 0:00:34]} Kb4 {[%emt 0:00:25]} 34. g3 {[%emt 0:02:48]} Rc5 {[%emt 0:00:16]} 35. f3 {[%emt 0:03:00]} e5 {[%emt 0:06:52]} (35... Rc8 $11) 36. e4 $16 {[%emt 0:01:19]} dxe4 {[%emt 0:00:50]} 37. fxe4 {[%emt 0:00:18]} Be6 {[%emt 0:00:09] [#]} 38. Rc2 $2 {[%emt 0:01:55]} (38. g4 $1 $16 {[%cal Rg4h5]} Bxg4 39. Nd5+ Kb5 40. Rxc5+ Kxc5 41. Nxf6) 38... f5 $17 {[%emt 0:01:25]} 39. exf5 {[%emt 0:00:27]} Bxf5 {[%emt 0:00:07]} 40. Rc1 {[%emt 0:00:28][%cal Oc1f1]} e4 {[%emt 0:01:28]} ({Better is} 40... Bg6 $17 {aiming for ...f6.} 41. Na4 Rxc1 42. Kxc1 Ka3) 41. Ne2 $2 {[%emt 0:02:32][%mdl 8192]} (41. Nd1 $1 $11 {and White is okay.}) 41... Rxc1 $19 {[%emt 0:07:48]} 42. Nxc1 {[%emt 0:06:13] KB-KN} (42. Kxc1 $142 Bg4 43. Nd4) 42... Bg4 {[%emt 0:14:13] White must now prevent ...Ka3.} 43. Ke3 {[%emt 0:00:30]} f5 {[%emt 0:13:26] And now ...Ka3 would win.} 44. Kd4 {[%emt 0:23:24]} Ka3 {[%emt 0:00:30]} 45. Kc3 {[%emt 0:00:30]} e3 {[%emt 0:00:30]} (45... Bd1 $142 {Strongly threatening ...Bg4.} 46. Kd2 Bf3) 46. Kc2 {[%emt 0:00:30]} e2 {[%emt 0:00:30]} 47. Kd2 {[%emt 0:00:30]} Kb2 {[%emt 0:00:30]} 48. Nd3+ {[%emt 0:00:30]} (48. Nxe2 Bxe2 49. Kxe2 Kxa2 50. Kf3 Kxb3 51. Kf4 a4 52. Kg5 a3 53. Kxh5 a2 54. Kg5 a1=Q 55. Kxf5 Qc3 56. h5 Qxg3 57. h6 Kc4 58. h7 Qd3+ 59. Kg5 Qxh7 60. Kf6 Kd5 61. Kg5 Ke5 62. Kg4 Qd3 63. Kh5 Kf5 64. Kh4 Kf4 65. Kh5 Qh7#) 48... Kxa2 {[%emt 0:00:30]} 49. b4 {[%emt 0:00:30] [#]} axb4 {[%emt 0:00:30]} (49... a4 $1 $19 50. b5 a3) 50. Nxb4+ $11 {[%emt 0:00:30]} Kb3 {[%emt 0:00:30]} 51. Nd3 {[%emt 0:00:30]} Ka4 {[%emt 0:00:30]} (51... Kc4 $5 {[%cal Rc4d4]} 52. Nf4 Bf3 $11) 52. Nf4 {[%emt 0:00:30]} Kb4 {[%emt 0:00:30]} 53. Nxe2 {[%emt 0:00:30] Weighted Error Value: White=0.81/Black=0.59} 1/2-1/2

[Event "Slovakian-ch Youth 2022"]
[Site "Lubovna"]
[Date "2022.05.22"]
[Round "1.21"]
[White "Papp, Gabor"]
[Black "Rakovsky, Jakub"]
[Result "1/2-1/2"]
[ECO "A80"]
[WhiteElo "2564"]
[BlackElo "1888"]
[Annotator "TA"]
[PlyCount "115"]
[EventDate "2022.05.22"]
[EventCountry "SVK"]
[SourceTitle "playchess.com"]
[Source "ChessBase"]
[SourceQuality "1"]
[TimeControl "40/5400+30:1800+30"]

{[%evp 9,115,39,35,0,0,0,47,34,23,29,35,26,41,2,64,18,10,-67,-52,-61,-21,-51,-45,-50,-56,-56,-32,-63,-54,-78,-54,-66,-35,-40,-24,-30,-34,-31,-24,-31,0,0,0,0,0,0,0,0,56,34,48,0,0,0,0,0,0,0,70,42,78,2,34,0,0,0,139,0,0,0,309,63,236,221,314,175,206,214,216,222,196,40,144,132,271,203,330,292,372,-98,670,643,633,606,543,445,545,64,64,82,85,0,0,0,0,0,0,0]} 1. d4 {[%emt 0:01:13]} f5 {[%emt 0:00:32]} 2. Nc3 {[%emt 0:00:30]} Nf6 {[%emt 0:00:07]} 3. Bg5 {[%emt 0:00:03]} d5 {[%emt 0:01:25]} 4. e3 {[%emt 0:00:33]} Nbd7 {[%emt 0:01:31]} 5. Bd3 {[%emt 0:01:02]} e6 {[%emt 0:01:10]} 6. Nge2 {[%emt 0:01:18] [#] A80: Dutch Defence: Unusual White second moves.} Be7 $146 {[%emt 0:06:46]} ({Predecessor:} 6... c5 7. Nf4 Qb6 8. Bb5 Kf7 9. Bxd7 Bxd7 10. Bxf6 Kxf6 11. Ncxd5+ exd5 12. Nxd5+ Kf7 13. Nxb6 axb6 {1-0 (24) Ivanovic,N (2215)-Becelic,D (2095) Belgrade 2009}) 7. Nf4 {[%emt 0:01:19]} Nf8 {[%emt 0:00:07]} (7... Nb6 $11) 8. Bxf6 {[%emt 0:09:53] White is slightly better.} Bxf6 {[%emt 0:00:37]} 9. Nh5 {[%emt 0:01:10]} c6 {[%emt 0:04:28]} 10. Nxf6+ {[%emt 0:00:20]} Qxf6 {[%emt 0:00:17]} 11. Qd2 {[%emt 0:18:09]} b5 {[%emt 0:03:39]} ({Black should play} 11... e5 $11) 12. O-O-O {[%emt 0:00:30] White is more active.} (12. Ne2 $14 {might be stronger.}) 12... Nd7 $11 {[%emt 0:00:30][%cal Bf8d7,Bd7b6,Bb6c4][%mdl 32]} 13. a3 {[%emt 0:01:58]} ({White should try} 13. h3 $11) 13... a5 $15 {[%emt 0:03:07]} 14. Kb1 {[%emt 0:00:09][%cal Og2g4]} Qe7 {[%emt 0:04:22]} 15. Na2 {[%emt 0:15:59][%cal Bc3a2,Ba2c1,Bc1e2,Be2d4][%mdl 32]} Nb6 {[%emt 0:01:32]} 16. c3 {[%emt 0:01:34]} Nc4 {[%emt 0:01:09]} 17. Bxc4 {[%emt 0:00:30]} bxc4 {[%emt 0:00:11]} 18. Qc2 {[%emt 0:07:28]} O-O {[%emt 0:10:01]} 19. Nc1 {[%emt 0:00:30]} Bd7 {[%emt 0:00:30]} 20. Ka1 {[%emt 0:06:18]} Rfb8 {[%emt 0:01:40]} 21. Rd2 {[%emt 0:00:29]} Rb5 {[%emt 0:06:39]} 22. Qd1 {[%emt 0:01:14]} Rab8 {[%emt 0:01:22][%cal Ob5b2] White must now prevent ...Rxb2!} 23. Ne2 {[%emt 0:07:44]} Rb3 {[%emt 0:00:47]} 24. Ka2 {[%emt 0:01:31]} c5 {[%emt 0:05:41]} 25. dxc5 {[%emt 0:00:47]} Qxc5 {[%emt 0:01:24]} 26. Nd4 {[%emt 0:00:29]} Ba4 {[%emt 0:01:42][%cal Ob3a3]} 27. Qc1 {[%emt 0:00:06]} R3b6 {[%emt 0:00:53]} 28. f4 {[%emt 0:00:04]} g6 {[%emt 0:06:23]} (28... Be8 $11) 29. Rg1 {[%emt 0:00:17]} Re8 {[%emt 0:07:30]} 30. Re2 {[%emt 0:03:22]} (30. g4 $14) 30... e5 $11 {[%emt 0:00:34]} 31. fxe5 {[%emt 0:00:23]} Rxe5 {[%emt 0:00:11]} 32. g4 {[%emt 0:00:42]} fxg4 {[%emt 0:02:02]} 33. Rxg4 {[%emt 0:00:24]} Bd7 {[%emt 0:01:42]} (33... Rf6 $11) 34. Rf4 $14 {[%emt 0:02:54]} Qe7 {[%emt 0:03:08]} 35. Qe1 {[%emt 0:03:07]} (35. Ref2 $16) 35... Rb8 {[%emt 0:01:04]} 36. Rf3 {[%emt 0:11:31]} Re8 {[%emt 0:04:50]} 37. h3 {[%emt 0:00:31]} g5 {[%emt 0:08:34]} (37... Rf8 $11) 38. Rg3 {[%emt 0:00:11]} (38. Ref2 $16) 38... Kh8 {[%emt 0:00:18]} 39. Qg1 {[%emt 0:00:17] Threatens to win with Nf3.} h5 $2 {[%emt 0:01:20][%mdl 8192]} (39... h6 $1 $11 {and Black is okay.}) 40. Qg2 $2 {[%emt 0:02:06]} (40. Nf3 $18 Rf5 41. e4 dxe4 42. Nxg5) 40... g4 $2 {[%emt 0:07:12]} (40... h4 $14 41. Rf3 Rf8) 41. hxg4 $18 {[%emt 0:30:52]} hxg4 {[%emt 0:04:28]} (41... Bxg4 $142 42. Rxg4 hxg4) 42. Re1 {[%emt 0:00:00]} (42. Qh1+ $142 Kg8 43. Nc6 $1 {[%mdl 512]} Bxc6 44. Rxg4+ Rg5 45. Rxg5+ Qxg5 46. Rg2 Qxg2 47. Qxg2+ Kf7 48. Qg3) 42... Rh5 {[%emt 0:02:13]} 43. Rh1 {[%emt 0:00:00]} Qh7 {[%emt 0:00:16]} 44. Rxh5 {[%emt 0:00:00]} Qxh5 {[%emt 0:00:08] [#]} 45. Ne2 $2 {[%emt 0:00:00]} ({White must play} 45. Qf2 $1 $18) 45... Re5 {[%emt 0:03:10]} (45... Kg7 $1 $14) 46. Nf4 $36 {[%emt 0:00:00][%mdl 2048] Keeping Black busy.} Qf7 {[%emt 0:02:07]} (46... Qg5 $16 47. Qd2 Bf5) 47. Qd2 {[%emt 0:00:00]} Kh7 {[%emt 0:07:53]} (47... Rg5 $142 48. Qd4+ Kg8) 48. Qd4 $18 {[%emt 0:00:00]} Re4 {[%emt 0:01:20]} 49. Qxd5 {[%emt 0:00:00]} (49. Qb6 $18) 49... Rxf4 $4 {[%emt 0:00:30][%mdl 8192]} (49... Qxd5 $17 50. Nxd5 Kg6) 50. Qh1+ {[%emt 0:00:00]} Kg7 {[%emt 0:02:37] Hoping for ...Rf1.} 51. exf4 {[%emt 0:00:00]} Qxf4 {[%emt 0:00:30][%mdl 4096] Endgame KQR-KQB} 52. Qg1 {[%emt 0:00:00]} Kf6 {[%emt 0:00:30]} 53. Qd4+ $2 {[%emt 0:00:00]} ({Better is} 53. Qb6+ $18 Kf7 54. Rg1) 53... Qxd4 $14 {[%emt 0:00:30]} 54. cxd4 {[%emt 0:00:00]} Kf5 {[%emt 0:00:30] [#]} 55. Re3 {[%emt 0:00:00]} (55. d5 $1 $16) 55... Kf4 $11 {[%emt 0:00:30] The position is equal.} 56. Re7 {[%emt 0:00:00]} Ba4 {[%emt 0:00:30]} 57. d5 {[%emt 0:00:00] aiming for d6.} g3 {[%emt 0:00:30]} 58. Rf7+ {[%emt 0:00:00] Weighted Error Value: White=0.61/Black=0.56} 1/2-1/2

[Event "Slovakian-ch Youth 2022"]
[Site "Lubovna"]
[Date "2022.05.22"]
[Round "1.22"]
[White "Rak, Martin"]
[Black "Lakota, Jan"]
[Result "1-0"]
[ECO "B19"]
[WhiteElo "1849"]
[BlackElo "1488"]
[Annotator "NA RC COMBH"]
[PlyCount "55"]
[EventDate "2022.05.22"]
[EventCountry "SVK"]
[SourceTitle "playchess.com"]
[Source "ChessBase"]
[SourceQuality "1"]
[TimeControl "40/5400+30:1800+30"]

1. e4 {[%emt 0:00:03]} c6 {[%emt 0:00:10]} 2. d4 {[%emt 0:00:05]} d5 {[%emt 0:00:14]} 3. Nc3 {[%emt 0:00:05]} dxe4 {[%emt 0:00:55]} 4. Nxe4 {[%emt 0:00:08]} Bf5 {[%emt 0:00:06]} 5. Ng3 {[%emt 0:00:06]} Bg6 {[%emt 0:00:06]} 6. Nf3 {[%emt 0:00:04]} Nd7 {[%emt 0:00:33]} 7. h4 {[%emt 0:00:26]} h6 {[%emt 0:00:54]} 8. h5 {[%emt 0:00:31]} Bh7 {[%emt 0:00:18]} 9. Bd3 {[%emt 0:00:09]} Bxd3 {[%emt 0:00:12]} 10. Qxd3 {[%emt 0:00:02]} Ngf6 {[%emt 0:00:20]} 11. Bf4 {[%emt 0:01:07]} Qa5+ {[%emt 0:03:11]} 12. Bd2 {[%emt 0:00:06]} Qc7 {[%emt 0:00:52]} 13. O-O-O {[%emt 0:01:32]} O-O-O {[%emt 0:05:02]} 14. Kb1 {[%emt 0:06:23]} e6 {[%emt 0:03:35]} 15. Ne4 {[%emt 0:06:13]} Nxe4 {[%emt 0:15:59]} 16. Qxe4 {[%emt 0:00:07]} Bd6 {[%emt 0:00:49]} 17. c4 {[%emt 0:11:49]} Nf6 {[%emt 0:10:01]} 18. Qc2 {[%emt 0:03:14]} Rhe8 {[%emt 0:01:03]} 19. Qa4 {[%emt 0:06:14]} Kb8 {[%emt 0:10:15]} 20. c5 {[%emt 0:06:20]} Bf4 {[%emt 0:02:12]} 21. Ba5 {[%emt 0:00:37]} b6 {[%emt 0:00:38]} 22. g3 {[%emt 0:10:21]} Bg5 {[%emt 0:14:19]} 23. Ne5 {[%emt 0:03:50]} Kb7 {[%emt 0:03:32]} 24. Nc4 {[%emt 0:12:56]} Nd5 {[%emt 0:01:23]} 25. Rd3 {[%emt 0:03:56]} Ra8 {[%emt 0:04:31]} 26. Nd6+ {[%emt 0:01:23]} Kb8 {[%emt 0:01:47]} 27. Nxe8 {[%emt 0:01:04]} Qd7 {[%emt 0:00:31]} 28. Nd6 {[%emt 0:01:03]} 1-0